bitfinex-derivatives/quotes_ETHF0:USTF0_20250116
["timestamp","ask_amount","ask_price","bid_price","bid_amount"]
[1736987809370,3.79601,3400.0,3399.3,0.58832]
[1736987809571,3.2078,3400.0,3399.0,0.4787]
[1736987809765,3.2078,3400.0,3399.4,0.58829]
[1736987810064,4.98069904,3400.7,3398.4,3.2078]
[1736987810065,3.2078,3399.6,3398.4,3.2078]
[1736987810260,3.19369904,3400.2,3398.0,1.47134]
[1736987810261,3.2078,3399.2,3398.3,0.4733]
[1736987810463,3.2078,3399.2,3398.7,0.58841]
[1736987810763,3.2078,3399.2,3398.0,3.2078]
[1736987810957,3.2078,3398.8,3398.0,3.2078]
[1736987811362,3.2078,3398.8,3398.2,0.5885]
[1736987812260,3.2078,3398.8,3398.2,0.58851]
[1736987812470,3.2078,3398.8,3398.3,0.58848]
[1736987812772,3.2078,3398.4,3397.6,4.1473]
[1736987813069,3.2078,3398.4,3397.6,3.2078]
[1736987813259,3.2078,3398.4,3397.9,0.58856]
[1736987813462,3.2078,3398.4,3397.6,3.2078]
[1736987813463,3.2078,3398.4,3398.1,0.58852]
[1736987813662,3.2078,3398.8,3398.3,0.58848]
[1736987813866,3.2078,3398.8,3398.0,3.2078]
[1736987814368,3.2078,3398.8,3398.6,0.58843]
[1736987814567,3.2078,3398.8,3398.0,3.2078]
[1736987814766,3.2078,3398.8,3398.1,0.58852]
[1736987815071,3.2078,3398.8,3398.0,3.2078]
[1736987815269,3.2078,3398.8,3398.3,0.58849]
[1736987815562,3.2078,3399.2,3398.1,40.8]
[1736987815767,3.2078,3399.2,3398.8,0.58841]
[1736987815963,3.2078,3399.7,3398.8,3.2078]
[1736987816669,3.2078,3399.7,3399.3,0.58831]
[1736987817169,3.2078,3399.7,3398.9,0.4854]
[1736987818068,3.79605,3399.7,3398.9,1.07378]
[1736987818266,3.2078,3399.7,3398.9,0.4854]
[1736987818468,0.58829,3399.5,3398.9,0.4854]
[1736987818664,0.58828,3399.6,3398.9,0.4854]
[1736987818864,3.2078,3399.1,3397.8,3.2078]
[1736987819174,0.58831,3399.4,3398.6,0.58844]
[1736987819764,4.9728,3399.5,3398.7,0.58842]
[1736987819964,4.9728,3399.5,3397.8,1.47144]
[1736987819965,3.2078,3399.9,3398.4,3.6932]
[1736987820168,3.2078,3399.9,3398.5,0.4868]
[1736987820370,3.2078,3399.5,3399.4,0.5883]
[1736987820568,3.2078,3400.4,3399.4,3.2078]
[1736987820775,0.39104583,3402.7,3400.6,0.58809]
[1736987820776,3.79577,3401.4,3400.6,0.58809]
[1736987820968,3.2078,3401.5,3400.6,3.2078]
[1736987821164,3.2078,3401.5,3400.9,0.58804]
[1736987821374,3.2078,3402.0,3400.5,3.2078]
[1736987821562,3.2078,3402.4,3401.3,3.2078]
[1736987821769,3.2078,3402.4,3402.1,0.58783]
[1736987822073,3.2078,3402.4,3402.2,0.58781]
[1736987822264,1.765,3403.0,3402.4,0.58778]
[1736987822470,3.79545,3403.2,3402.3,0.5878]
[1736987822671,0.58768,3403.1,3402.3,0.5878]
[1736987822872,3.79546,3403.2,3402.4,0.58778]
[1736987823175,3.2078,3403.2,3401.9,3.2078]
[1736987823375,3.2078,3403.2,3402.3,3.2078]
[1736987824370,3.2078,3403.2,3401.7,1.46975]
[1736987824371,3.2078,3403.7,3402.7,3.2078]
[1736987824565,13.52925,3405.6,3403.6,0.58758]
[1736987824566,3.2078,3404.2,3403.6,0.58758]
[1736987824771,3.2078,3404.2,3403.3,3.2078]
[1736987824968,4.9728,3404.7,3403.4,0.58761]
[1736987825165,4.9728,3404.7,3403.8,3.2078]
[1736987825373,4.9728,3404.7,3403.9,0.58753]
[1736987825668,3.2078,3404.7,3403.8,3.2078]
[1736987825875,3.2078,3405.2,3404.5,0.58742]
[1736987826175,3.2078,3405.2,3404.4,3.2078]
[1736987826371,3.2078,3405.2,3404.4,3.79523]
[1736987826573,3.2078,3405.2,3404.4,3.2078]
[1736987826867,3.2078,3404.7,3403.8,3.2078]
[1736987827678,3.2078,3404.7,3403.9,0.58752]
[1736987827976,3.2078,3404.7,3403.9,0.58753]
[1736987828179,3.2078,3404.7,3403.8,3.2078]
[1736987828674,3.2078,3404.7,3404.4,0.58743]
[1736987828869,3.2078,3405.2,3404.2,3.2078]
[1736987829065,3.2078,3405.2,3404.6,0.5874]
[1736987829271,3.2078,3405.2,3404.4,0.58742]
[1736987829673,3.2078,3405.2,3404.3,0.4416]
[1736987829873,0.58733,3405.1,3404.3,0.4416]
[1736987830172,3.2078,3405.2,3404.3,0.4416]
[1736987830568,3.79511,3405.2,3404.3,1.02905]
[1736987830771,3.2078,3405.2,3404.3,1.02905]
[1736987830971,3.2078,3405.2,3404.3,0.4416]
[1736987831172,3.2078,3405.2,3404.7,0.58738]
[1736987831375,3.2078,3405.2,3404.7,0.58739]
[1736987831567,3.2078,3405.2,3404.3,0.4416]
[1736987831969,3.2078,3405.2,3404.5,0.58742]
[1736987832673,3.2078,3404.8,3404.3,0.4416]
[1736987832879,3.2078,3404.4,3403.2,0.9144]
[1736987833182,3.2078,3403.7,3403.2,0.9144]
[1736987833882,6.40149904,3403.3,3401.5,3.2078]
[1736987834079,3.2078,3402.3,3401.5,3.2078]
[1736987834275,1.46883,3403.9,3402.1,0.58783]
[1736987834276,3.2078,3402.7,3402.1,0.58783]
[1736987834476,0.58764,3403.3,3402.4,0.58778]
[1736987834675,0.58766,3403.2,3402.5,3.2078]
[1736987834878,3.2078,3403.0,3402.5,0.58776]
[1736987835080,3.2078,3403.0,3402.7,0.58773]
[1736987835485,3.2078,3403.0,3402.6,0.58775]
[1736987835678,3.2078,3403.0,3402.5,3.2078]
[1736987835875,3.2078,3403.0,3402.6,0.58775]
[1736987836183,3.2078,3403.0,3402.5,3.2078]
[1736987836677,3.2078,3403.7,3402.9,3.2078]
[1736987837076,3.2078,3403.7,3403.4,0.58761]
[1736987837579,3.2078,3403.7,3402.9,3.2078]
[1736987837781,4.89869904,3405.2,3403.3,3.2078]
[1736987837782,3.2078,3404.5,3403.3,3.2078]
[1736987837975,3.2078,3404.5,3403.7,3.2078]
[1736987838177,3.2078,3404.5,3404.4,0.58744]
[1736987838373,3.2078,3404.5,3403.7,3.2078]
[1736987838972,3.2078,3404.5,3404.4,0.58744]
[1736987839185,0.58736,3404.9,3404.2,3.2078]
[1736987839382,3.79514,3405.0,3404.5,0.58742]
[1736987839579,3.79514,3405.0,3404.6,0.58741]
[1736987839776,3.2078,3405.0,3404.1,3.2078]
[1736987840080,3.2078,3405.0,3404.4,0.58744]
[1736987840285,0.58736,3404.9,3404.4,0.58744]
[1736987840475,3.2078,3405.0,3404.1,3.2078]
[1736987840676,0.58753,3403.9,3403.4,0.5876]
[1736987840881,3.2078,3403.8,3403.4,0.5876]
[1736987841076,3.2078,3403.8,3402.9,3.2078]
[1736987841377,3.2078,3403.0,3402.9,0.5877]
[1736987841685,3.2078,3403.7,3403.5,0.58758]
[1736987841986,0.58746,3404.4,3403.9,0.58751]
[1736987842278,3.2078,3404.4,3403.1,8.10549904]
[1736987842581,3.79527,3404.3,3403.6,0.58757]
[1736987842775,3.2078,3404.3,3403.5,40.8]
[1736987842976,3.2078,3403.8,3403.1,3.2078]
[1736987843182,3.2078,3403.8,3402.7,3.6541]
[1736987843382,3.2078,3403.8,3403.7,0.58756]
[1736987843580,3.2078,3403.8,3403.1,3.2078]
[1736987843778,3.2078,3403.3,3403.0,0.58767]
[1736987844083,0.58768,3403.1,3402.7,0.58773]
[1736987844282,0.58769,3403.0,3402.6,1.51155]
[1736987844478,0.58768,3403.1,3402.7,0.58772]
[1736987844785,3.2078,3402.8,3402.2,3.2078]
[1736987844984,3.2078,3402.8,3402.3,40.8]
[1736987845389,3.2078,3403.2,3402.3,40.8]
[1736987845584,3.2078,3403.2,3403.1,0.58767]
[1736987845975,3.2078,3403.2,3402.7,3.2078]
[1736987846183,0.5877,3403.0,3402.4,0.58779]
[1736987846391,0.58768,3403.1,3402.3,44.0078]
[1736987846584,0.58767,3403.1,3402.6,0.58774]
[1736987846788,0.58769,3403.0,3402.3,44.0078]
[1736987847089,3.2078,3403.2,3402.3,44.0078]
[1736987847281,0.58769,3403.0,3402.6,0.58775]
[1736987847480,3.2078,3403.2,3402.3,44.0078]
[1736987847881,3.2078,3403.2,3398.7,6.8197223]
[1736987847882,3.2078,3402.0,3399.4,3.2078]
[1736987848086,3.2078,3400.5,3399.6,0.9006]
[1736987848383,0.5882,3400.0,3399.5,40.8]
[1736987848585,3.2078,3400.1,3399.3,3.2078]
[1736987848779,3.2078,3400.1,3398.7,6.8197223]
[1736987848780,0.58827,3399.6,3398.9,3.2078]
[1736987848987,3.2078,3399.7,3398.9,3.2078]
[1736987849181,3.19369904,3400.0,3398.3,3.79629]
[1736987849182,0.58835,3399.2,3398.3,3.79629]
[1736987849386,3.2078,3399.3,3398.3,3.2078]
[1736987849579,0.58841,3398.8,3398.3,3.2078]
[1736987850183,3.2078,3398.9,3398.3,3.2078]
[1736987850383,3.79619,3398.9,3398.3,3.2078]
[1736987850582,3.2078,3398.9,3398.3,3.79629]
[1736987850786,3.2078,3398.9,3398.3,3.2078]
[1736987851184,3.2078,3398.9,3398.1,0.4466]
[1736987851185,3.2078,3398.5,3398.1,0.4466]
[1736987851388,3.2078,3398.5,3397.9,3.2078]
[1736987851589,0.58849,3398.4,3397.9,3.2078]
[1736987851790,3.2078,3398.5,3397.9,3.2078]
[1736987851996,3.2078,3398.5,3397.5,3.2078]
[1736987852283,3.2078,3398.5,3397.5,3.79642]
[1736987852590,3.2078,3398.5,3397.8,0.58858]
[1736987852788,3.2078,3398.5,3397.9,3.2078]
[1736987852988,3.2078,3398.0,3397.5,3.2078]
[1736987853290,3.2078,3398.0,3397.6,40.8]
[1736987853485,3.2078,3398.5,3397.7,0.5886]
[1736987853688,3.19369904,3398.9,3397.5,3.2078]
[1736987853689,3.2078,3398.1,3397.5,3.2078]
[1736987854080,3.2078,3398.5,3397.5,3.2078]
[1736987854283,3.2078,3398.5,3398.0,0.58854]
[1736987854489,3.2078,3398.9,3398.2,0.5885]
[1736987854885,3.2078,3398.9,3398.3,0.58848]
[1736987855083,3.2078,3398.9,3398.1,3.2078]
[1736987855483,3.2078,3399.5,3398.5,3.2078]
[1736987855884,3.2078,3400.0,3399.0,3.2078]
[1736987856280,3.2078,3400.0,3399.1,0.58834]
[1736987856486,3.2078,3400.0,3399.3,0.58832]
[1736987856688,3.2078,3400.0,3399.0,3.2078]
[1736987856888,3.2078,3400.0,3399.4,0.5883]
[1736987857093,3.2078,3400.0,3399.0,6.40149904]
[1736987857592,3.2078,3400.6,3400.1,0.58817]
[1736987857789,3.2078,3400.6,3399.9,3.2078]
[1736987858091,1.46964,3402.1,3400.7,0.58808]
[1736987858092,0.58793,3401.6,3400.7,0.58808]
[1736987858289,0.58798,3401.4,3400.4,0.58813]
[1736987858493,3.2078,3401.5,3400.7,0.58807]
[1736987858687,4.9138,3402.1,3400.7,3.2078]
[1736987858883,4.9138,3402.1,3401.4,0.58795]
[1736987858884,3.2078,3402.1,3401.4,0.58795]
[1736987859195,3.2078,3402.1,3401.1,3.2078]
[1736987859699,3.2078,3403.0,3401.6,3.2078]
[1736987859892,3.2078,3403.0,3402.3,0.58779]
[1736987860195,3.2078,3403.0,3401.6,3.2078]
[1736987860491,3.79543,3403.3,3402.4,0.58777]
[1736987860695,3.2078,3403.3,3402.0,44.0078]
[1736987860891,3.2078,3402.9,3402.0,40.8]
[1736987861090,3.79559,3402.4,3401.0,0.58802]
[1736987861293,3.2078,3402.8,3401.8,0.58789]
[1736987861792,3.2078,3402.8,3402.1,3.2078]
[1736987862793,3.2078,3402.8,3402.2,0.58782]
[1736987862996,3.2078,3402.8,3402.3,0.58779]
[1736987863294,3.2078,3402.8,3402.1,3.2078]
[1736987863994,3.2078,3402.8,3402.5,0.58777]
[1736987864693,3.2078,3402.8,3402.1,3.2078]
[1736987864889,3.2078,3402.8,3402.5,0.58776]
[1736987865090,3.2078,3402.8,3402.1,3.2078]
[1736987865091,3.2078,3402.8,3402.3,0.58779]
[1736987865394,3.2078,3402.8,3402.5,0.58776]
[1736987865794,3.2078,3402.8,3402.4,0.58778]
[1736987865987,3.2078,3402.8,3402.1,3.2078]
[1736987865988,0.58777,3402.6,3402.1,3.2078]
[1736987866187,3.2078,3402.8,3402.1,3.2078]
[1736987866391,3.2078,3402.2,3401.7,0.9349]
[1736987866590,3.2078,3402.2,3401.8,0.58788]
[1736987866786,3.2078,3402.2,3401.7,0.9349]
[1736987866986,3.2078,3402.2,3402.1,0.58784]
[1736987867193,3.2078,3402.2,3401.7,0.9349]
[1736987867194,3.2078,3402.2,3401.9,0.58787]
[1736987867395,3.2078,3402.2,3401.7,0.9349]
[1736987867998,3.2078,3402.2,3402.1,0.58784]
[1736987868196,3.2078,3402.8,3402.0,3.2078]
[1736987868999,0.58775,3402.7,3402.0,3.2078]
[1736987869201,3.2078,3402.8,3402.0,3.2078]
[1736987869499,3.2078,3402.8,3402.1,0.58783]
[1736987869792,3.2078,3402.8,3402.2,0.58782]
[1736987869998,3.2078,3402.8,3402.0,3.2078]
[1736987870299,0.58773,3402.7,3402.1,0.58783]
[1736987870489,0.58773,3402.7,3402.0,3.2078]
[1736987870687,0.58773,3402.7,3402.1,0.58784]
[1736987870688,0.58774,3402.7,3402.1,0.58784]
[1736987871000,0.58773,3402.7,3402.0,3.2078]
[1736987871298,3.2078,3402.4,3401.9,0.58786]
[1736987871490,3.2078,3402.4,3402.1,0.58784]
[1736987871692,3.2078,3402.4,3402.0,0.58785]
[1736987872101,3.2078,3402.4,3401.7,0.9349]
[1736987872495,0.58774,3402.7,3402.1,0.58783]
[1736987872698,3.2078,3402.8,3402.4,0.58778]
[1736987872998,3.2078,3402.8,3402.0,3.2078]
[1736987873198,3.2078,3402.8,3402.5,0.58775]
[1736987873399,3.2078,3402.8,3402.5,0.58777]
[1736987873697,0.58775,3402.6,3402.0,3.79565]
[1736987873898,3.2078,3402.1,3400.9,3.2078]
[1736987874205,3.2078,3401.8,3400.8,3.2078]
[1736987874400,3.2078,3401.8,3401.5,0.58794]
[1736987874796,3.2078,3401.8,3400.8,3.2078]
[1736987874992,3.2078,3401.8,3401.4,0.58795]
[1736987875501,3.2078,3401.8,3401.4,0.58796]
[1736987875701,3.2078,3401.8,3400.8,3.2078]
[1736987875702,3.2078,3401.8,3401.3,0.58797]
[1736987875897,3.2078,3401.8,3401.1,0.588]
[1736987875898,0.58791,3401.7,3401.1,0.588]
[1736987876099,0.58791,3401.7,3400.8,3.79585]
[1736987876300,3.2078,3401.8,3400.8,3.2078]
[1736987876503,0.58793,3401.6,3401.0,0.58802]
[1736987877205,0.58793,3401.6,3401.0,0.58801]
[1736987877700,3.2078,3401.8,3400.8,3.2078]
[1736987877905,3.2078,3401.8,3401.1,0.588]
[1736987878401,3.2078,3401.8,3400.9,0.58803]
[1736987878705,3.2078,3401.8,3400.6,40.8]
[1736987878706,0.58803,3401.0,3400.6,40.8]
[1736987879002,3.2078,3401.4,3400.6,40.8]
[1736987879207,0.58798,3401.3,3400.6,40.8]
[1736987879401,0.58804,3401.0,3400.6,40.8]
[1736987879602,0.58799,3401.3,3400.7,0.58807]
[1736987879901,0.588,3401.2,3400.6,41.38809]
[1736987880205,3.2078,3401.4,3400.6,40.8]
[1736987880801,3.2078,3401.4,3400.8,3.2078]
[1736987881106,3.2078,3401.4,3401.1,0.58801]
[1736987881303,3.19369904,3403.1,3401.3,0.58798]
[1736987881503,3.2078,3402.4,3401.3,3.2078]
[1736987881704,0.24101783,3403.7,3401.9,3.2078]
[1736987881705,3.2078,3402.8,3401.9,3.2078]
[1736987881901,3.2078,3402.8,3402.4,0.58777]
[1736987882105,3.2078,3402.8,3402.3,3.2078]
[1736987882499,3.2078,3402.8,3402.6,0.58774]
[1736987882697,3.2078,3402.8,3402.3,0.58779]
[1736987882899,3.2078,3402.8,3402.0,40.8]
[1736987882900,3.2078,3402.8,3402.5,0.58777]
[1736987883107,0.58778,3402.5,3402.0,40.8]
[1736987883296,3.2078,3402.8,3401.1,0.4515]
[1736987883297,3.2078,3402.4,3401.1,0.4515]
[1736987883610,0.5879,3401.8,3401.3,0.58796]
[1736987883803,3.2078,3402.0,3401.2,3.2078]
[1736987884105,3.2078,3401.6,3401.2,3.2078]
[1736987884305,3.2078,3401.6,3400.8,3.79585]
[1736987884306,0.58798,3401.3,3400.8,3.79585]
[1736987884508,0.58795,3401.5,3400.9,0.58805]
[1736987884699,0.58795,3401.5,3400.9,41.38805]
[1736987884904,0.58798,3401.3,3400.9,40.8]
[1736987885099,0.58797,3401.4,3400.9,40.8]
[1736987885303,0.58795,3401.5,3401.0,0.58802]
[1736987885504,3.2078,3401.1,3399.7,3.2078]
[1736987885702,0.58814,3400.4,3399.7,3.2078]
[1736987885898,3.2078,3400.1,3399.8,40.8]
[1736987886204,3.2078,3400.1,3399.8,41.38823]
[1736987886514,3.2078,3400.1,3399.8,40.8]
[1736987886811,3.2078,3400.1,3399.9,0.58822]
[1736987887108,3.2078,3400.6,3399.8,40.8]
[1736987887610,0.58811,3400.5,3399.8,40.8]
[1736987887813,3.2078,3400.6,3400.3,0.58815]
[1736987888004,3.2078,3400.6,3399.8,40.8]
[1736987888508,3.2078,3400.6,3400.2,0.58815]
[1736987888817,3.2078,3400.6,3400.4,0.58813]
[1736987889110,3.2078,3400.6,3400.4,0.58812]
[1736987889304,3.2078,3400.6,3399.8,40.9]
[1736987889500,3.2078,3401.1,3400.4,0.58813]
[1736987889700,3.2078,3401.1,3400.7,0.58807]
[1736987890009,0.58803,3401.0,3400.6,0.5881]
[1736987890206,3.2078,3401.1,3400.3,3.2078]
[1736987890509,3.2078,3401.5,3400.7,0.58807]
[1736987890704,3.2078,3401.5,3400.3,3.2078]
[1736987890903,3.2078,3401.5,3401.3,0.58797]
[1736987891414,3.2078,3401.5,3401.4,0.58796]
[1736987891912,3.79558,3402.5,3402.0,0.58785]
[1736987892112,3.79558,3402.5,3401.9,0.58787]
[1736987892113,0.5878,3402.4,3401.9,0.58787]
[1736987892306,3.2078,3402.5,3402.2,0.58781]
[1736987892509,3.2078,3402.5,3401.7,3.2078]
[1736987892709,3.2078,3402.5,3401.8,0.35582697]
[1736987893010,3.2078,3402.5,3401.7,3.2078]
[1736987893208,3.2078,3402.5,3402.2,0.58787]
[1736987893602,3.2078,3402.5,3401.7,3.2078]
[1736987893808,3.2078,3402.1,3401.3,44.0078]
[1736987894008,3.2078,3401.7,3400.8,0.4803]
[1736987894205,3.79577,3401.7,3401.2,0.58804]
[1736987894406,3.2078,3401.3,3401.2,0.58804]
[1736987894610,3.2078,3401.8,3401.7,0.58797]
[1736987894914,3.2078,3401.8,3401.6,0.58797]
[1736987895209,3.2078,3401.8,3401.2,40.8]
[1736987895415,3.2078,3401.8,3401.6,0.58798]
[1736987895710,3.2078,3401.8,3401.2,40.8]
[1736987896012,3.2078,3401.8,3401.6,0.58798]
[1736987896207,3.2078,3401.8,3401.7,0.58797]
[1736987896517,3.2078,3401.8,3401.6,0.58797]
[1736987897213,3.2078,3401.8,3400.8,0.4803]
[1736987897513,0.588,3401.5,3401.0,0.58808]
[1736987897713,3.2078,3401.8,3400.8,0.4803]
[1736987898017,3.2078,3401.0,3400.2,6.40149904]
[1736987898309,3.2078,3401.0,3400.7,0.58813]
[1736987898710,3.2078,3401.0,3400.2,3.2078]
[1736987898914,3.2078,3401.0,3400.7,40.8]
[1736987899119,3.2078,3401.0,3400.2,3.2078]
[1736987899307,3.2078,3401.0,3400.7,0.58814]
[1736987899620,3.2078,3401.0,3400.8,0.58812]
[1736987899815,3.2078,3401.0,3400.3,40.8]
[1736987900011,3.2078,3401.4,3401.3,0.58803]
[1736987900317,3.2078,3401.4,3400.6,4.1131]
[1736987900518,3.2078,3401.4,3401.3,0.58803]
[1736987901621,3.2078,3401.8,3400.7,3.19369904]
[1736987901816,3.2078,3401.8,3401.7,0.58797]
[1736987902017,3.2078,3401.8,3401.0,1.47022]
[1736987902216,3.2078,3401.8,3401.7,0.58797]
[1736987902711,2.4742,3401.8,3401.7,0.58797]
[1736987902911,2.4742,3401.8,3401.1,0.4694]
[1736987903115,2.4742,3401.8,3401.7,0.58797]
[1736987904117,2.4742,3401.8,3401.6,0.58797]
[1736987904324,3.06215,3401.8,3401.1,0.4694]
[1736987904525,0.58797,3401.7,3401.4,0.58801]
[1736987904721,2.4742,3401.8,3401.1,0.4694]
[1736987905423,2.4742,3401.8,3401.2,0.58805]
[1736987905727,2.4742,3401.8,3400.6,0.9053]
[1736987905728,3.2078,3401.4,3400.6,0.9053]
[1736987905920,0.58806,3401.2,3400.9,0.58809]
[1736987906121,0.58804,3401.3,3401.0,0.58807]
[1736987906427,3.2078,3401.4,3401.3,0.58803]
[1736987906724,0.58806,3401.2,3400.7,0.58812]
[1736987907025,3.2078,3401.1,3401.0,0.58809]
[1736987907221,3.2078,3401.5,3401.4,0.58802]
[1736987907422,3.2078,3401.5,3400.9,0.5881]
[1736987907622,3.2078,3401.5,3401.2,0.58804]
[1736987907823,3.2078,3401.5,3400.8,3.2078]
[1736987908021,3.2078,3401.5,3401.4,0.58802]
[1736987908420,3.2078,3401.5,3401.3,0.58803]
[1736987908624,3.2078,3401.5,3401.4,0.58802]
[1736987909125,3.2078,3401.6,3401.5,0.588]
[1736987909324,3.2078,3402.2,3401.2,1.47013]
[1736987909524,0.5879,3402.1,3401.7,0.58795]
[1736987909715,3.2078,3402.2,3401.9,0.58792]
[1736987909915,3.79568,3402.2,3401.9,0.58793]
[1736987910326,3.79569,3402.2,3401.8,0.58794]
[1736987910527,3.2078,3402.2,3401.3,1.47009]
[1736987910929,3.2078,3402.2,3402.1,0.5879]
[1736987911127,3.2078,3402.2,3401.3,0.4826]
[1736987911327,3.2078,3402.2,3401.4,0.35659467]
[1736987911525,3.2078,3402.2,3402.1,0.5879]
[1736987911825,3.2078,3402.7,3402.1,0.5879]
[1736987912026,3.2078,3402.2,3402.1,0.5879]
[1736987912728,3.2078,3402.2,3402.1,0.6879]
[1736987915619,3.2078,3402.6,3402.3,0.58785]
[1736987915927,3.2078,3402.6,3402.1,0.1]
[1736987915928,0.58788,3402.2,3402.1,0.1]
[1736987916130,3.79568,3402.2,3402.1,0.1]
[1736987918321,8.2078,3402.2,3400.9,0.5881]
[1736987918523,3.2078,3401.2,3400.7,40.8]
[1736987918725,3.2078,3400.8,3400.6,0.58815]
[1736987918927,3.2078,3400.8,3399.8,0.4816]
[1736987919234,3.2078,3400.0,3399.9,40.8]
[1736987919531,3.79607,3400.0,3399.4,0.58835]
[1736987919746,3.79614,3399.6,3399.1,0.58841]
[1736987920033,0.58836,3399.5,3398.9,3.79625]
[1736987920231,3.2078,3399.6,3398.5,3.2078]
[1736987920627,0.58837,3399.4,3398.8,0.58846]
[1736987920831,0.58836,3399.5,3398.5,3.2078]
[1736987921034,3.2078,3399.6,3398.5,3.2078]
[1736987921223,3.2078,3399.6,3398.9,3.2078]
[1736987921427,3.2078,3399.6,3399.5,0.58835]
[1736987922136,3.2078,3400.3,3399.6,0.58833]
[1736987922333,3.2078,3400.3,3399.5,3.2078]
[1736987922833,3.79602,3400.3,3399.5,3.2078]
[1736987923032,3.2078,3400.3,3399.8,0.58828]
[1736987923332,0.58823,3400.2,3399.5,3.2078]
[1736987923630,3.79609,3399.9,3399.3,0.9234]
[1736987923835,3.79609,3399.9,3399.4,0.58836]
[1736987923836,0.58831,3399.8,3399.4,0.58836]
[1736987924224,3.2078,3399.9,3399.3,1.07087]
[1736987924225,0.58832,3399.7,3399.3,1.07087]
[1736987924529,3.2078,3399.9,3399.6,0.58832]
[1736987924731,3.2078,3399.9,3399.3,0.4825]
[1736987925334,3.2078,3399.9,3399.6,0.58833]
[1736987925536,3.2078,3399.9,3399.7,40.8]
[1736987925735,3.79609,3399.9,3399.7,40.8]
[1736987925926,3.2078,3399.9,3399.7,40.8]
[1736987926129,3.2078,3399.9,3399.8,0.58829]
[1736987926430,3.2078,3399.9,3399.7,40.8]
[1736987926625,3.2078,3399.9,3399.7,41.3883]
[1736987926826,3.2078,3399.9,3399.7,40.8]
[1736987927031,3.2078,3399.9,3399.8,0.58829]
[1736987927832,3.79609,3399.9,3399.7,40.8]
[1736987928034,3.2078,3399.9,3399.7,0.5883]
[1736987928235,3.79609,3399.9,3399.4,0.58835]
[1736987928434,3.79609,3399.9,3399.3,0.4825]
[1736987928435,3.2078,3399.9,3399.5,40.8]
[1736987928640,0.58831,3399.7,3399.5,40.8]
[1736987928840,0.58833,3399.6,3399.2,3.2078]
[1736987929035,0.58833,3399.6,3399.2,3.7962]
[1736987929237,3.2078,3399.5,3399.2,0.5884]
[1736987929535,0.58838,3399.4,3398.9,0.58843]
[1736987929741,3.2078,3399.5,3398.5,0.9136]
[1736987929938,3.2078,3399.5,3399.0,0.58842]
[1736987930136,0.58837,3399.4,3399.0,0.58842]
[1736987930342,3.2078,3399.5,3399.0,0.58842]
[1736987930534,0.58836,3399.4,3399.0,0.58842]
[1736987930839,3.2078,3399.5,3399.1,0.5884]
[1736987931039,3.2078,3399.5,3398.6,40.8]
[1736987931236,3.2078,3399.5,3398.8,3.2078]
[1736987931536,3.2078,3400.0,3398.7,4.67902]
[1736987931833,3.2078,3400.0,3399.1,3.2078]
[1736987932038,3.79607,3400.0,3398.8,1.47116]
[1736987932241,3.2078,3400.0,3398.7,3.2078]
[1736987932432,3.2078,3399.6,3398.7,3.2078]
[1736987932829,3.2078,3399.6,3399.4,0.58835]
[1736987933335,3.2078,3399.6,3396.6,29.442]
[1736987933531,0.4765,3399.5,3394.9,19.41608109]
[1736987933732,0.58933,3393.8,3393.7,29.0641038]
[1736987933939,3.78302904,3393.8,3393.7,20.23106541]
[1736987934138,8.78302904,3393.8,3393.7,5.75657704]
[1736987934436,8.78302904,3393.8,3391.6,3.2078]
[1736987934437,0.58936,3393.7,3391.6,3.2078]
[1736987934633,0.58956,3392.5,3392.2,6.24142428]
[1736987934835,3.2078,3392.9,3392.1,6.24142428]
[1736987934836,0.58954,3392.7,3392.1,6.24142428]
[1736987935036,3.2078,3392.4,3392.1,6.24142428]
[1736987935331,3.2078,3392.4,3392.0,6.24142428]
[1736987935534,3.19369904,3392.1,3391.9,6.24142428]
[1736987935836,3.2078,3392.4,3390.5,3.2078]
[1736987935837,3.2078,3392.0,3390.5,3.2078]
[1736987936032,3.2078,3392.0,3391.9,40.8]
[1736987936228,0.58962,3392.2,3391.9,57.04142428]
[1736987936443,8.86324454,3392.3,3392.0,6.24062428]
[1736987936735,0.58961,3392.2,3392.1,6.24062428]
[1736987936944,26.56447344,3392.3,3391.9,40.8]
[1736987937142,3.79745,3392.0,3391.9,40.14447]
[1736987937339,0.58983,3391.0,3390.2,3.2078]
[1736987937541,0.58988,3390.7,3390.2,3.2078]
[1736987937740,3.79767,3390.7,3390.6,4.05567651]
[1736987938035,3.2078,3390.7,3390.2,10.0]
[1736987938236,3.2078,3390.7,3390.6,40.8]
[1736987938442,3.2078,3391.4,3390.6,44.0078]
[1736987938738,0.58976,3391.4,3391.0,3.2078]
[1736987938942,0.58978,3391.3,3391.0,3.2078]
[1736987939240,1.994,3393.3,3390.6,40.7358741]
[1736987939241,0.58973,3391.6,3391.2,3.2078]
[1736987939442,0.58968,3391.8,3391.2,3.2078]
[1736987939634,0.58968,3391.8,3391.7,3.2078]
[1736987940237,5.45205806,3391.9,3391.2,3.2078]
[1736987940442,0.58969,3391.8,3391.7,3.2078]
[1736987940838,5.45205806,3391.9,3391.7,3.2078]
[1736987941040,0.58968,3391.8,3391.7,3.2078]
[1736987941738,3.26918403,3392.0,3391.7,3.2078]
[1736987942247,2.17501942,3392.3,3391.7,3.2078]
[1736987942540,2.17501942,3392.3,3391.6,1.995]